fUSD/lending_fUSD_20240317
["ID","MTS","AMOUNT","RATE_DAILY","PERIOD"]
[319307149,1710653458872,-668.09,0.00015479,2]
[319307150,1710653458882,-668.09,0.00015479,2]
[319307151,1710653458892,-668.09,0.00015479,2]
[319307152,1710653458902,-668.09,0.00015479,2]
[319307153,1710653458912,-668.09,0.00015479,2]
[319307154,1710653458923,-668.09,0.00015479,2]
[319307155,1710653458935,-668.09,0.00015479,2]
[319307156,1710653458946,-668.09,0.00015479,2]
[319307157,1710653458958,-668.09,0.00015479,2]
[319307158,1710653458969,-668.22,0.00015479,2]
[319307159,1710653458981,-600.73,0.00015479,2]
[319307160,1710653458992,-600.73,0.00015479,2]
[319307161,1710653459002,-600.73,0.00015479,2]
[319307162,1710653459011,-600.73,0.00015479,2]
[319307163,1710653459021,-600.73,0.00015479,2]
[319307164,1710653459030,-600.73,0.00015479,2]
[319307165,1710653459040,-600.73,0.00015479,2]
[319307166,1710653459050,-600.73,0.00015479,2]
[319307167,1710653459059,-600.73,0.00015479,2]
[319307168,1710653459068,-600.73,0.00015479,2]
[319307169,1710653459077,-600.96169041,0.00015479,2]
[319307170,1710653459086,-500.0,0.00015479,2]
[319307171,1710653459096,-500.0,0.00015479,2]
[319307172,1710653459106,-500.0,0.00015479,2]
[319307173,1710653459115,-500.0,0.00015479,2]
[319307174,1710653459124,-500.0,0.00015479,2]
[319307175,1710653459133,-3197.86,0.00015479,2]
[319307176,1710653459142,-500.0,0.00015479,2]
[319307177,1710653459152,-3197.86,0.00015479,2]
[319307178,1710653459161,-500.0,0.00015479,2]
[319307179,1710653459171,-3197.86,0.00015479,2]
[319307180,1710653459180,-286.47,0.00015479,2]
[319307181,1710653459189,-3197.86,0.00015479,2]
[319307182,1710653459198,-151.0,0.00015489,2]
[319307183,1710653459208,-151.0,0.00015489,2]
[319307184,1710653459217,-151.0,0.00015489,2]
[319307185,1710653459226,-191.877165,0.00015489,2]
[319307186,1710653459235,-151.0,0.00015489,2]
[319307187,1710653459246,-151.581057,0.00015489,2]
[319307188,1710653459255,-151.520016,0.00015489,2]
[319307189,1710653459264,-151.0,0.00015489,2]
[319307190,1710653459273,-151.0,0.00015489,2]
[319307191,1710653459283,-151.0,0.00015489,2]
[319307192,1710653459292,-235.565484,0.00015489,2]
[319307193,1710653459301,-151.0,0.00015489,2]
[319307194,1710653459310,-151.0,0.00015489,2]
[319307195,1710653459320,-151.0,0.00015489,2]
[319307196,1710653459329,-214.599104,0.00015489,2]
[319307197,1710653459338,-151.0,0.00015489,2]
[319307198,1710653459348,-262.493537,0.00015489,2]
[319307199,1710653459357,-151.0,0.00015489,2]
[319307200,1710653459367,-151.0,0.00015489,2]
[319307201,1710653459376,-151.0,0.00015489,2]
[319307202,1710653459385,-151.0,0.00015489,2]
[319307203,1710653459394,-151.0,0.00015489,2]
[319307204,1710653459405,-151.0,0.00015489,2]
[319307205,1710653459416,-151.0,0.00015489,2]
[319307206,1710653459425,-151.0,0.00015489,2]
[319307207,1710653459434,-151.0,0.00015489,2]
[319307208,1710653459443,-154.072768,0.00015489,2]
[319307209,1710653459453,-157.930575,0.00015489,2]
[319307210,1710653459463,-157.930575,0.00015489,2]
[319307211,1710653459472,-151.0,0.00015489,2]
[319307212,1710653459481,-151.0,0.00015489,2]
[319307213,1710653459492,-151.0,0.00015489,2]
[319307214,1710653459501,-151.0,0.00015489,2]
[319307215,1710653459510,-151.0,0.00015489,2]
[319307216,1710653459520,-151.0,0.00015489,2]
[319307217,1710653459529,-151.0,0.00015489,2]
[319307218,1710653459538,-151.0,0.00015489,2]
[319307219,1710653459548,-152.774855,0.00015489,2]
[319307220,1710653459557,-151.621402,0.00015489,2]
[319307221,1710653459566,-151.371089,0.00015489,2]
[319307222,1710653459576,-151.0,0.00015489,2]
[319307223,1710653459585,-154.547808,0.00015489,2]
[319307224,1710653459594,-151.0,0.00015489,2]
[319307225,1710653459604,-155.448723,0.00015489,2]
[319307226,1710653459614,-151.940943,0.00015489,2]
[319307227,1710653459623,-1717.7116042,0.00015489,2]
[319307228,1710653459633,-1651.0608996,0.00015489,2]
[319307229,1710653459642,-1584.4101951,0.00015489,2]
[319307230,1710653459653,-151.0,0.00015489,2]
[319307231,1710653459662,-151.0,0.00015489,2]
[319307232,1710653459672,-151.0,0.00015489,2]
[319307233,1710653459681,-151.0,0.00015489,2]
[319307234,1710653459690,-151.0,0.00015489,2]
[319307235,1710653459700,-151.0,0.00015489,2]
[319307236,1710653459710,-151.0,0.00015489,2]
[319307237,1710653459719,-165.894704,0.00015489,2]
[319307238,1710653459729,-151.0,0.00015489,2]
[319307239,1710653459738,-204.748478,0.00015489,2]
[319307240,1710653459929,-204.748478,0.00015489,2]
[319307241,1710653459944,-4385.1174311,0.00015489,2]
[319307242,1710653459954,-3698.9193073,0.00015489,2]
[319307243,1710653459963,-3012.7211835,0.00015489,2]
[319307244,1710653459972,-151.0,0.00015489,2]
[319307245,1710653459981,-161.752112,0.00015489,2]
[319307246,1710653459991,-161.752112,0.00015489,2]
[319307247,1710653460000,-151.0,0.00015489,2]
[319307248,1710653460010,-151.0,0.00015489,2]
[319307249,1710653460019,-242.142895,0.00015489,2]
[319307250,1710653460029,-151.0,0.00015489,2]
[319307251,1710653460038,-151.0,0.00015489,2]
[319307252,1710653460052,-151.0,0.00015489,2]
[319307253,1710653460061,-225.886764,0.00015489,2]
[319307254,1710653460071,-225.886764,0.00015489,2]
[319307255,1710653460080,-151.0,0.00015489,2]
[319307256,1710653460089,-153.990602,0.00015489,2]
[319307257,1710653460099,-151.0,0.00015489,2]
[319307258,1710653460108,-151.0,0.00015489,2]
[319307259,1710653460118,-151.0,0.00015489,2]
[319307260,1710653460128,-151.0,0.00015489,2]
[319307261,1710653460138,-151.0,0.00015489,2]
[319307262,1710653460147,-151.0,0.00015489,2]
[319307263,1710653460157,-12752.2485849,0.00015489,2]
[319307264,1710653460166,-10790.3641872,0.00015489,2]
[319307265,1710653460176,-8828.4797895,0.00015489,2]
[319307266,1710653460186,-151.0,0.00015489,2]
[319307267,1710653460196,-151.0,0.00015489,2]
[319307268,1710653460205,-6129.1575601,0.00015489,2]
[319307269,1710653460216,-5186.2102432,0.00015489,2]
[319307270,1710653460226,-4243.2629262,0.00015489,2]
[319307271,1710653460238,-151.0,0.00015489,2]
[319307272,1710653460247,-291.180788,0.00015489,2]
[319307273,1710653460256,-194910.5224314,0.00015489,2]
[319307274,1710653460266,-164924.2882112,0.00015489,2]
[319307275,1710653460275,-134938.0539909,0.00015489,2]
[319307276,1710653460285,-291.180788,0.00015489,2]
[319307277,1710653460297,-151.0,0.00015489,2]
[319307278,1710653460308,-151.0,0.00015489,2]
[319307279,1710653460318,-156.499567,0.00015489,2]
[319307280,1710653460330,-151.0,0.00015489,2]
[319307281,1710653460339,-48284.6969029,0.00015489,2]
[319307282,1710653460350,-42854.6152707,0.00015489,2]
[319307283,1710653460359,-37424.5336385,0.00015489,2]
[319307284,1710653460369,-151.0,0.00015489,2]
[319307285,1710653460381,-2522.286774,0.00015489,2]
[319307286,1710653460391,-11194.116,0.00015495,2]
[319307287,1710653460400,-375.8908722,0.00015497,2]
[319307288,1710653460413,-1584.7842546,0.00015497,2]
[319307289,1710653460423,-67205.95879512,0.00015498,2]
[319307290,1710653460434,-271.17143817,0.00015498,2]
[319307291,1710653460446,-155.76346993,0.00015498,2]
[319307292,1710653460456,-19357.64560893,0.00015498,2]
[319307293,1710653460465,-151.0,0.00015498,2]
[319307294,1710653460475,-151.0,0.00015498,2]
[319307295,1710653460486,-151.0,0.00015498,2]
[319307296,1710653460497,-151.0,0.00015498,2]
[319307297,1710653460507,-151.0,0.00015498,2]
[319307298,1710653460516,-157.930575,0.00015498,2]
[319307299,1710653460525,-157.930575,0.00015498,2]
[319307300,1710653460535,-151.0,0.00015498,2]
[319307301,1710653460546,-151.63272,0.00015498,2]
[319307302,1710653460555,-151.0,0.00015498,2]
[319307303,1710653460565,-151.0,0.00015498,2]
[319307304,1710653460574,-151.0,0.00015498,2]
[319307305,1710653460584,-151.0,0.00015498,2]
[319307306,1710653460593,-151.604833,0.00015498,2]
[319307307,1710653460603,-2522.286774,0.00015498,2]
[319307308,1710653460613,-1000.0,0.00015499,2]
[319307309,1710653460622,-1000.0,0.00015499,2]
[319307310,1710653460633,-1000.0,0.00015499,2]
[319307311,1710653460643,-5932.40416781,0.00015499,2]
[319307312,1710653460653,-1000.0,0.00015499,2]
[319307313,1710653460662,-311.8375778,0.00015499,5]
[319307314,1710653460672,-311.8375778,0.00015499,5]
[319307315,1710653460682,-311.8375778,0.00015499,5]
[319307316,1710653460692,-311.8375778,0.00015499,5]
[319307317,1710653460701,-220000.0,0.00015499,2]
[319307318,1710653460711,-1000.0,0.00015499,2]
[319307319,1710653460721,-151.0,0.00015499,2]
[319307320,1710653460732,-151.0,0.00015499,2]
[319307321,1710653460741,-151.0,0.00015499,2]
[319307322,1710653460752,-151.0,0.00015499,2]
[319307323,1710653460762,-151.0,0.00015499,2]
[319307324,1710653460772,-151.0,0.00015499,2]
[319307325,1710653460781,-151.0,0.00015499,2]
[319307326,1710653460791,-151.0,0.00015499,2]
[319307327,1710653460804,-204.748478,0.00015499,2]
[319307328,1710653460814,-204.748478,0.00015499,2]
[319307329,1710653460824,-288.6239,0.00015499,2]
[319307330,1710653460833,-150.0,0.00015499,2]
[319307331,1710653460843,-150.0,0.00015499,2]
[319307332,1710653460852,-150.0,0.00015499,2]
[319307333,1710653460862,-150.0,0.00015499,2]
[319307334,1710653460871,-150.0,0.00015499,2]
[319307335,1710653460881,-180.49783728,0.00015499,2]
[319307336,1710653460890,-1074.54974325,0.000155,3]
[319307337,1710653460900,-8888116.3383607,0.000155,2]
[319307338,1710653460918,-111651.61676386,0.000155,2]
[319307339,1710653460930,-141503.43260499,0.000155,2]
[319307340,1710653460942,-11107.86048704,0.000155,2]
[319307341,1710653461062,-176.71230856,0.00015395,2]
[319307342,1710653461071,-268.68023899,0.00015399,2]
[319307343,1710653461080,-1250.0,0.00015419,2]
[319307344,1710653461090,-89.20756169,0.00015479,2]
[319307345,1710653461198,-500.0,0.00015399,2]
[319307346,1710653461208,-140.0,0.00015399,2]
[319307347,1710653461408,-155.34008199,0.0001525,2]
[319307348,1710653461421,-842.61938101,0.00015359,2]
[319307349,1710653461435,-2157.38061899,0.00015359,2]
[319307350,1710653461447,-63.91313483,0.00015399,2]
[319307351,1710653461456,-500.0,0.00015399,2]
[319307352,1710653461466,-2473.23494621,0.00015399,2]
[319307353,1710653461475,-518.2184822,0.00015399,2]
[319307354,1710653461485,-500.0,0.00015399,2]
[319307355,1710653461495,-176.71230856,0.000154,2]
[319307356,1710653461505,-3108.65243831,0.00015479,2]
[319307357,1710653461514,-3197.86,0.00015479,2]
[319307358,1710653461523,-3197.86,0.00015479,2]
[319307359,1710653461533,-3197.86,0.00015479,2]
[319307360,1710653461542,-3197.86,0.00015479,2]
[319307361,1710653461556,-3197.86,0.00015479,2]
[319307362,1710653461565,-3198.03,0.00015479,2]
[319307363,1710653461575,-2522.286774,0.00015489,2]
[319307364,1710653461586,-2522.286774,0.00015498,2]
[319307365,1710653461595,-4375.64935146,0.00015498,2]
[319307366,1710653461605,-44272.9574955,0.000155,2]
[319307368,1710653631916,50000.0,0.0001512,7]
[319307369,1710653940817,-152.0,0.00018994,24]
[319307370,1710653940852,-148.0,0.00019128,25]
[319307371,1710654406628,352.93,0.00011281,2]
[319307393,1710654632103,-171.00497673,0.00012382,2]
[319307394,1710654632113,-373.01502327,0.00012382,2]
[319307395,1710654632172,-1212.51755111,0.00012382,2]
[319307396,1710654632182,-873.63919331,0.00012383,2]
[319307397,1710654632194,-351.10664586,0.00012383,2]
[319307398,1710654632205,-255.97559429,0.00012383,2]
[319307399,1710654632217,-1008.9263289,0.00012383,2]
[319307400,1710654632228,-615.25441392,0.00012383,2]
[319307401,1710654632240,-1270.74717518,0.00012383,2]
[319307402,1710654632250,-159.52126381,0.00012389,2]
[319307403,1710654632259,-150.0,0.00012491,2]
[319307404,1710654632269,-260.0,0.00012491,2]
[319307405,1710654632279,-36.60581631,0.00012492,2]
[319307406,1710654632291,-667.93727272,0.00012492,2]
[319307407,1710654632302,-609.86344662,0.00012492,2]
[319307408,1710654632314,-5532.71619312,0.00012492,2]
[319307409,1710654632323,-159.52126381,0.00012597,2]
[319307410,1710654632333,-250.0,0.0001277,2]
[319307411,1710654632343,-500.0,0.00012781,2]
[319307412,1710654632353,-23900.0,0.00012797,2]
[319307413,1710654632363,-159.52126381,0.00012805,2]
[319307414,1710654632372,-200.0,0.00012809,2]
[319307415,1710654632382,-154.17,0.00012809,2]
[319307416,1710654632391,-1680.03,0.0001282,2]
[319307417,1710654632400,-188.38,0.00012965,2]
[319307418,1710654632410,-159.52126381,0.00013013,2]
[319307419,1710654632420,-290.4,0.00013013,2]
[319307420,1710654632429,-170.29,0.00013207,2]
[319307421,1710654632439,-159.52126381,0.0001322,2]
[319307422,1710654632448,-1286.09,0.00013257,2]
[319307424,1710654632458,-188.38,0.00013303,2]
[319307426,1710654632467,-545.18,0.00013307,2]
[319307428,1710654632476,-2500.0,0.00013369,2]
[319307430,1710654632485,-159.52126381,0.00013428,2]
[319307432,1710654632496,-352.93,0.00013545,2]
[319307434,1710654632506,-159.52126381,0.00013636,2]
[319307436,1710654632516,-188.38,0.0001364,2]
[319307439,1710654632526,-200.0,0.00013699,2]
[319307441,1710654632536,-315.03,0.00013699,2]
[319307444,1710654632545,-5000.0,0.00013699,2]
[319307447,1710654632555,-200.0,0.00013699,2]
[319307450,1710654632564,-163.47,0.00013699,2]
[319307452,1710654632575,-250.0,0.00013699,2]
[319307455,1710654632587,-210.0,0.0001374,2]
[319307458,1710654632597,-168.39,0.00013773,2]
[319307462,1710654632607,-163.39,0.00013822,2]
[319307464,1710654632617,-159.52126381,0.00013844,2]
[319307467,1710654632628,-1456.89436514,0.000139,5]
[319307469,1710654632640,-143.10563486,0.000139,5]
[319307471,1710654632649,-168.39,0.00013966,2]
[319307473,1710654632659,-3300.0,0.00014,5]
[319307475,1710654632669,-159.52126381,0.00014052,2]
[319307477,1710654632678,-1195.78305561,0.000141,5]
[319307479,1710654632690,-267.95,0.000141,5]
[319307482,1710654632711,-2247.44885934,0.000141,5]
[319307490,1710654632785,-500.0,0.000141,5]
[319307493,1710654632798,-688.81808505,0.000141,5]
[319307494,1710654632810,-323.0436316,0.000141,2]
[319307522,1710654638143,-672.8863684,0.000141,2]
[319307524,1710654638153,-168.39,0.00014158,2]
[319307526,1710654638163,-288.0,0.000142,2]
[319307528,1710654638172,-535.0,0.000142,2]
[319307529,1710654638183,-2500.0,0.000142,2]
[319307531,1710654638193,-6600.0,0.000142,5]
[319307533,1710654638202,-159.52126381,0.0001426,2]
[319307535,1710654638211,-8200.0,0.000143,5]
[319307537,1710654638220,-168.39,0.00014351,2]
[319307538,1710654638230,-168.0341058,0.000144,2]
[319307540,1710654638239,-1600.0,0.000144,5]
[319307542,1710654638248,-154.17,0.0001441,2]
[319307543,1710654638259,-159.52126381,0.00014468,2]
[319307544,1710654638269,-6044.15217754,0.00014499,2]
[319307565,1710654638534,-1981.1914489,0.00014499,2]
[319307566,1710654638546,-101666.42254328,0.00014499,2]
[319307567,1710654638557,-4402.28764937,0.00014499,2]
[319307568,1710654638568,-882.16640859,0.00014499,2]
[319307569,1710654638580,-2577.1541702,0.00014499,2]
[319307570,1710654638593,-757.89469564,0.00014499,2]
[319307571,1710654638605,-3678.24169276,0.00014499,2]
[319307572,1710654638617,-908.63777929,0.00014499,2]
[319307573,1710654638631,-1537.03782763,0.00014499,2]
[319307574,1710654638649,-3715.88853551,0.00014499,2]
[319307575,1710654638661,-3675.25986,0.00014499,2]
[319307576,1710654638675,-5302.82217616,0.00014499,2]
[319307577,1710654638690,-10441.17998013,0.00014499,2]
[319307578,1710654638706,-121864.30273548,0.00014499,2]
[319307579,1710654638719,-130238.75570108,0.00014499,2]
[319307580,1710654638739,-5888.82,0.000145,2]
[319307581,1710654638755,-356.4,0.000145,2]
[319307582,1710654638767,-1600.0,0.000145,5]
[319307583,1710654638781,-454.82,0.00014538,2]
[319307584,1710654638791,-168.39,0.00014544,2]
[319307585,1710654638800,-174.73,0.00014565,2]
[319307586,1710654638810,-1600.0,0.000146,5]
[319307587,1710654638821,-288.0,0.0001462,2]
[319307588,1710654638831,-535.0,0.0001462,2]
[319307589,1710654638842,-168.03410578,0.0001465,2]
[319307590,1710654638853,-159.52126381,0.00014675,2]
[319307591,1710654638864,-239.28,0.00014687,2]
[319307592,1710654638875,-1600.0,0.000147,5]
[319307593,1710654638886,-168.39,0.00014737,2]
[319307594,1710654638897,-2129.0,0.000148,5]
[319307595,1710654638910,-159.52126381,0.00014883,2]
[319307596,1710654638920,-168.03410578,0.000149,2]
[319307597,1710654638930,-545.18,0.00014971,2]
[319307598,1710654638939,-2550.0,0.00015,4]
[319307599,1710654638949,-12969.46016745,0.00015,2]
[319307600,1710654638958,-288.0,0.0001503,2]
[319307601,1710654638967,-535.0,0.0001503,2]
[319307602,1710654638979,-155.46952767,0.00015083,2]
[319307603,1710654638989,-159.52126381,0.00015091,2]
[319307604,1710654638999,-183343.0,0.00015092,2]
[319307605,1710654639008,-293.0,0.00015114,2]
[319307606,1710654639018,-150.0,0.00015142,2]
[319307607,1710654639027,-168.03410578,0.0001515,2]
[319307608,1710654639037,-150.0,0.00015197,2]
[319307609,1710654639047,-2932.0,0.000152,2]
[319307610,1710654639057,-159.52126381,0.00015299,2]
[319307611,1710654639066,-6910.34411375,0.00015345,2]
[319307612,1710654639076,-3000.0,0.0001535,2]
[319307613,1710654639085,-1080.8769,0.00015389,2]
[319307614,1710654639097,-1000.0,0.0001539,2]
[319307615,1710654639106,-1000.0,0.0001539,2]
[319307616,1710654639115,-663.0,0.0001539,2]
[319307617,1710654639125,-1006.0,0.0001539,2]
[319307618,1710654639134,-500.0,0.00015393,2]
[319307619,1710654639144,-505.0,0.00015399,2]
[319307620,1710654639153,-1000.0,0.00015399,2]
[319307621,1710654639162,-1000.0,0.00015399,2]
[319307622,1710654639172,-1000.0,0.00015399,2]
[319307623,1710654639181,-1000.0,0.00015399,2]
[319307624,1710654639190,-1000.0,0.00015399,2]
[319307625,1710654639199,-1000.0,0.00015399,2]
[319307626,1710654639209,-1000.0,0.00015399,2]
[319307627,1710654639219,-1000.0,0.00015399,2]
[319307628,1710654639228,-1000.0,0.00015399,2]
[319307629,1710654639238,-1000.0,0.00015399,2]
[319307630,1710654639247,-1000.0,0.00015399,2]
[319307631,1710654639257,-1000.0,0.00015399,2]
[319307632,1710654639266,-1000.0,0.00015399,2]
[319307633,1710654639275,-1000.0,0.00015399,2]
[319307634,1710654639284,-1000.0,0.00015399,2]
[319307635,1710654639294,-1000.0,0.00015399,2]
[319307636,1710654639303,-1000.0,0.00015399,2]
[319307637,1710654639312,-1000.0,0.00015399,2]
[319307638,1710654639322,-1000.0,0.00015399,2]
[319307639,1710654639331,-1000.0,0.00015399,2]
[319307640,1710654639341,-500.0,0.00015399,2]
[319307641,1710654639350,-501.53999013,0.00015399,2]
[319307642,1710654639359,-500.0,0.00015399,2]
[319307643,1710654639368,-500.0,0.00015399,2]
[319307644,1710654639377,-501.01592625,0.00015399,2]
[319307645,1710654639386,-500.77510382,0.00015399,2]
[319307646,1710654639395,-500.0,0.00015399,2]
[319307647,1710654639404,-500.0,0.00015399,2]
[319307648,1710654639414,-519.71232837,0.00015399,2]
[319307649,1710654639423,-500.0,0.00015399,2]
[319307650,1710654639432,-621.53436055,0.00015399,2]
[319307651,1710654639446,-500.44790428,0.00015399,2]
[319307652,1710654639455,-500.0,0.00015399,2]
[319307653,1710654639464,-628.63147348,0.00015399,2]
[319307654,1710654639474,-169.40029891,0.00015399,2]
[319307655,1710654639483,-500.0,0.00015399,2]
[319307656,1710654639493,-500.0,0.00015399,2]
[319307657,1710654639502,-500.32375849,0.00015399,2]
[319307658,1710654639511,-500.0,0.00015399,2]
[319307659,1710654639521,-508.10650306,0.00015399,2]
[319307660,1710654639531,-500.0,0.00015399,2]
[319307661,1710654639540,-275.72552247,0.00015399,2]
[319307662,1710654639550,-480.52123741,0.00015399,2]
[319307663,1710654639560,-381.05900795,0.00015399,2]
[319307664,1710654639569,-500.60062883,0.00015399,2]
[319307665,1710654639578,-500.0,0.00015399,2]
[319307666,1710654639589,-500.0,0.00015399,2]
[319307667,1710654639598,-514.54139126,0.00015399,2]
[319307668,1710654639607,-500.0,0.00015399,2]
[319307669,1710654639617,-500.0,0.00015399,2]
[319307670,1710654639627,-614.2407864,0.00015399,2]
[319307671,1710654639636,-500.0,0.00015399,2]
[319307672,1710654639645,-500.0,0.00015399,2]
[319307673,1710654639655,-500.0,0.00015399,2]
[319307674,1710654639664,-273.48712123,0.00015399,2]
[319307675,1710654639673,-513.3799023,0.00015399,2]
[319307676,1710654639683,-500.0,0.00015399,2]
[319307677,1710654639692,-278.66623962,0.00015399,2]
[319307678,1710654639703,-503.71974374,0.00015399,2]
[319307679,1710654639714,-390.18012422,0.00015399,2]
[319307680,1710654639724,-501.16545348,0.00015399,2]
[319307681,1710654639733,-500.0,0.00015399,2]
[319307682,1710654639747,-500.0,0.00015399,2]
[319307683,1710654639758,-500.0,0.00015399,2]
[319307684,1710654639767,-501.38868175,0.00015399,2]
[319307685,1710654639783,-500.0,0.00015399,2]
[319307686,1710654639794,-500.0,0.00015399,2]
[319307687,1710654639805,-500.0,0.00015399,2]
[319307688,1710654639814,-500.43568038,0.00015399,2]
[319307689,1710654639825,-500.0,0.00015399,2]
[319307690,1710654639834,-500.0,0.00015399,2]
[319307691,1710654639845,-538.99047754,0.00015399,2]
[319307692,1710654639857,-500.0,0.00015399,2]
[319307693,1710654639866,-522.66544054,0.00015399,2]
[319307694,1710654639877,-501.90989394,0.00015399,2]
[319307696,1710654639888,-501.91621866,0.00015399,2]
[319307697,1710654639897,-422.22144567,0.00015399,2]
[319307698,1710654639907,-211.56601888,0.00015399,2]
[319307699,1710654639917,-246.95777464,0.00015399,2]
[319307700,1710654639927,-500.0,0.00015399,2]
[319307701,1710654639939,-500.0,0.00015399,2]
[319307702,1710654639949,-468.15968026,0.00015399,2]
[319307703,1710654639959,-500.0,0.00015399,2]
[319307704,1710654639969,-500.0,0.00015399,2]
[319307705,1710654639978,-500.0,0.00015399,2]
[319307706,1710654639993,-500.0,0.00015399,2]
[319307707,1710654640002,-500.0,0.00015399,2]
[319307708,1710654640011,-500.0,0.00015399,2]
[319307709,1710654640021,-500.0,0.00015399,2]
[319307710,1710654640031,-500.0,0.00015399,2]
[319307711,1710654640041,-500.0,0.00015399,2]
[319307712,1710654640061,-500.0,0.00015399,2]
[319307713,1710654640070,-500.0,0.00015399,2]
[319307714,1710654640079,-500.40892496,0.00015399,2]
[319307715,1710654640089,-500.0,0.00015399,2]
[319307716,1710654640098,-500.0,0.00015399,2]
[319307717,1710654640107,-491.10702853,0.00015399,2]
[319307718,1710654640116,-500.0,0.00015399,2]
[319307719,1710654640125,-509.95523716,0.00015399,2]
[319307720,1710654640135,-500.0,0.00015399,2]
[319307721,1710654640146,-500.0,0.00015399,2]
[319307722,1710654640155,-500.0,0.00015399,2]
[319307723,1710654640164,-500.0,0.00015399,2]
[319307724,1710654640174,-500.0,0.00015399,2]
[319307725,1710654640183,-502.07278517,0.00015399,2]
[319307726,1710654640192,-500.0,0.00015399,2]
[319307727,1710654640203,-500.0,0.00015399,2]
[319307728,1710654640213,-500.0,0.00015399,2]
[319307729,1710654640224,-500.0,0.00015399,2]
[319307730,1710654640234,-500.0,0.00015399,2]
[319307731,1710654640243,-500.0,0.00015399,2]
[319307732,1710654640254,-500.0,0.00015399,2]
[319307733,1710654640263,-408.80371834,0.00015399,2]
[319307734,1710654640273,-164.21648886,0.00015399,2]
[319307735,1710654640283,-500.0,0.00015399,2]
[319307736,1710654640293,-500.0,0.00015399,2]
[319307737,1710654640302,-500.0,0.00015399,2]
[319307738,1710654640312,-494.36010155,0.00015399,2]
[319307739,1710654640322,-500.0,0.00015399,2]
[319307740,1710654640332,-500.0,0.00015399,2]
[319307741,1710654640344,-500.0,0.00015399,2]
[319307742,1710654640355,-630.86857669,0.00015399,2]
[319307743,1710654640365,-500.0,0.00015399,2]
[319307744,1710654640374,-500.0,0.00015399,2]
[319307745,1710654640384,-500.0,0.00015399,2]
[319307746,1710654640394,-500.0,0.00015399,2]
[319307747,1710654640403,-500.0,0.00015399,2]
[319307748,1710654640413,-500.0,0.00015399,2]
[319307749,1710654640422,-500.0,0.00015399,2]
[319307750,1710654640432,-500.0,0.00015399,2]
[319307751,1710654640442,-500.0,0.00015399,2]
[319307752,1710654640451,-500.0,0.00015399,2]
[319307753,1710654640461,-500.0,0.00015399,2]
[319307754,1710654640470,-500.0,0.00015399,2]
[319307755,1710654640479,-500.0,0.00015399,2]
[319307756,1710654640488,-640.71584904,0.00015399,2]
[319307757,1710654640498,-497.8353653,0.00015399,2]
[319307758,1710654640507,-500.08773089,0.00015399,2]
[319307759,1710654640517,-500.0,0.00015399,2]
[319307760,1710654640527,-500.0,0.00015399,2]
[319307761,1710654640536,-504.54529338,0.00015399,2]
[319307762,1710654640545,-500.0,0.00015399,2]
[319307763,1710654640555,-500.0,0.00015399,2]
[319307764,1710654640564,-500.0,0.00015399,2]
[319307765,1710654640574,-500.0,0.00015399,2]
[319307766,1710654640583,-500.0,0.00015399,2]
[319307767,1710654640593,-500.0,0.00015399,2]
[319307768,1710654640603,-500.0,0.00015399,2]
[319307769,1710654640612,-500.0,0.00015399,2]
[319307770,1710654640622,-500.0,0.00015399,2]
[319307771,1710654640631,-500.0,0.00015399,2]